fUST/lending_fUST_20250806
["ID","MTS","AMOUNT","RATE_DAILY","PERIOD"]
[377670508,1754482285781,-300.0,0.0005726,120]
[377670509,1754482285791,-460.0,0.0005726,120]
[377670510,1754482285800,-549.81,0.0005726,120]
[377670511,1754482285810,-2000.0,0.000573,66]
[377670512,1754482285820,-500.0,0.00057315,120]
[377670513,1754482285829,-901.79,0.00057534,120]
[377670514,1754482285839,-300.0,0.00057534,120]
[377670515,1754482285849,-500.0,0.00057534,120]
[377670516,1754482285859,-500.0,0.00057534,120]
[377670517,1754482285869,-500.0,0.00057534,120]
[377670518,1754482285879,-500.0,0.00057534,120]
[377670519,1754482285889,-500.0,0.00057534,120]
[377670520,1754482285898,-500.0,0.00057534,120]
[377670521,1754482285908,-500.0,0.00057534,120]
[377670522,1754482285918,-500.0,0.00057534,120]
[377670523,1754482285927,-500.0,0.00057534,120]
[377670524,1754482285936,-500.0,0.00057534,120]
[377670525,1754482285946,-500.0,0.00057534,120]
[377670526,1754482285955,-460.0,0.00057534,120]
[377670527,1754482285965,-2200.0,0.00057616,120]
[377670528,1754482285974,-151.0,0.000577,120]
[377670529,1754482285984,-200.0,0.00057748,120]
[377670530,1754482285994,-426.8,0.00057765,120]
[377670531,1754482286003,-901.79,0.00057808,120]
[377670532,1754482286013,-369.48532208,0.00057808,120]
[377670533,1754482286023,-510.37168338,0.00057808,120]
[377670534,1754482286032,-460.0,0.00057808,120]
[377670535,1754482286042,-1500.0,0.00058,120]
[377670536,1754482286052,-167.1113691,0.00058,60]
[377670537,1754482286062,-1386.6,0.00058,14]
[377670538,1754482286071,-901.79,0.00058082,120]
[377670539,1754482286175,-460.0,0.00058082,120]
[377670540,1754482286185,-2200.0,0.00058164,120]
[377670541,1754482286194,-500.0,0.00058273,120]
[377670542,1754482286204,-408.0,0.00058276,120]
[377670543,1754482286213,-2000.0,0.000583,69]
[377670544,1754482286222,-901.9644324,0.00058356,120]
[377670545,1754482286232,-426.8,0.00058501,120]
[377670546,1754482286242,-206.0,0.0005863,120]
[377670547,1754482286252,-1021.54,0.000588,120]
[377670548,1754482286262,-1000.0,0.000588,120]
[377670549,1754482286272,-1000.0,0.000588,120]
[377670550,1754482286283,-1000.0,0.000588,120]
[377670551,1754482286292,-1000.0,0.000588,120]
[377670552,1754482286302,-151.0,0.000588,120]
[377670553,1754482286312,-3888.54387131,0.00058846,28]
[377670554,1754482286322,-200.0,0.00059098,120]
[377670555,1754482286332,-180.768164,0.0005912,2]
[377670556,1754482286341,-200.0,0.00059122,120]
[377670557,1754482286351,-348.14929258,0.00059232,120]
[377670558,1754482286361,-426.8,0.00059238,120]
[377670559,1754482286370,-2200.0,0.0005926,120]
[377670560,1754482286381,-1030.5,0.000593,71]
[377670561,1754482286390,-200.0,0.00059451,120]
[377670562,1754482286400,-338.91562539,0.00059616,14]
[377670563,1754482286409,-200.0,0.00059774,120]
[377670564,1754482286419,-200.0,0.00059845,120]
[377670565,1754482286428,-500.0,0.0005985,120]
[377670566,1754482286438,-500.0,0.0005985,120]
[377670567,1754482286447,-420.91,0.00059898,30]
[377670568,1754482286456,-1500.0,0.0006,120]
[377670569,1754482286466,-704.64364234,0.0006,12]
[377670570,1754482286476,-1751.83988757,0.0006,120]
[377670571,1754482286485,-151.0,0.0006,120]
[377670572,1754482286495,-3000.0,0.00060273,120]
[377670573,1754482286504,-3000.0,0.00060273,120]
[377670574,1754482286513,-3000.0,0.00060273,120]
[377670575,1754482286523,-3000.0,0.00060273,120]
[377670576,1754482286532,-3000.0,0.00060273,120]
[377670577,1754482286541,-3000.0,0.00060273,120]
[377670578,1754482286551,-3000.0,0.00060273,120]
[377670579,1754482286560,-3000.0,0.00060273,120]
[377670580,1754482286570,-3000.0,0.00060273,120]
[377670581,1754482286579,-3000.0,0.00060273,120]
[377670582,1754482286589,-3000.0,0.00060273,120]
[377670583,1754482286598,-3000.0,0.00060273,120]
[377670584,1754482286608,-3000.0,0.00060273,120]
[377670585,1754482286618,-3000.0,0.00060273,120]
[377670586,1754482286628,-3000.0,0.00060273,120]
[377670587,1754482286639,-3000.0,0.00060273,120]
[377670588,1754482286650,-3000.0,0.00060273,120]
[377670589,1754482286659,-3000.0,0.00060273,120]
[377670590,1754482286669,-939.13592482,0.00060273,120]
[377670591,1754482286679,-418.53,0.00060274,5]
[377670592,1754482286688,-500.0,0.00060274,15]
[377670593,1754482286697,-290.55,0.00060274,15]
[377670594,1754482286707,-500.0,0.00060274,10]
[377670595,1754482286717,-204.36,0.00060274,15]
[377670596,1754482286727,-206.0,0.0006032,120]
[377670597,1754482286737,-2200.0,0.00060356,120]
[377670598,1754482286746,-313.45976513,0.0006076,120]
[377670599,1754482286756,-1498.0,0.00060949,82]
[377670600,1754482286765,-176.243726,0.00060949,120]
[377670601,1754482286775,-640.169219,0.00060949,120]
[377670602,1754482286785,-640.169219,0.00060949,120]
[377670603,1754482286794,-500.0,0.00061,120]
[377670604,1754482286804,-500.0,0.00061,120]
[377670605,1754482286814,-500.0,0.00061,120]
[377670606,1754482286824,-500.0,0.00061,120]
[377670607,1754482286833,-500.0,0.00061,120]
[377670608,1754482286843,-500.0,0.00061,120]
[377670609,1754482286852,-500.0,0.00061,120]
[377670610,1754482286862,-500.0,0.00061,120]
[377670611,1754482286871,-500.0,0.00061,120]
[377670612,1754482286881,-500.0,0.00061,120]
[377670613,1754482286891,-500.0,0.00061,120]
[377670614,1754482286900,-500.0,0.00061,120]
[377670615,1754482286909,-500.0,0.00061,120]
[377670616,1754482286918,-500.0,0.00061,120]
[377670617,1754482286928,-500.0,0.00061,120]
[377670618,1754482286937,-500.0,0.00061,120]
[377670619,1754482286946,-500.0,0.00061,120]
[377670620,1754482286955,-500.0,0.00061,120]
[377670621,1754482286965,-500.0,0.00061,120]
[377670622,1754482286975,-500.0,0.00061,120]
[377670623,1754482286984,-500.0,0.00061,120]
[377670624,1754482286993,-500.0,0.00061,120]
[377670625,1754482287003,-500.0,0.00061,120]
[377670626,1754482287012,-500.0,0.00061,120]
[377670627,1754482287021,-500.0,0.00061,120]
[377670628,1754482287031,-500.0,0.00061,120]
[377670629,1754482287040,-500.0,0.00061,120]
[377670630,1754482287049,-500.0,0.00061,120]
[377670631,1754482287058,-500.0,0.00061,120]
[377670632,1754482287068,-500.0,0.00061,120]
[377670633,1754482287077,-500.0,0.00061,120]
[377670634,1754482287086,-500.0,0.00061,120]
[377670635,1754482287095,-500.0,0.00061,120]
[377670636,1754482287105,-500.0,0.00061,120]
[377670637,1754482287114,-500.0,0.00061,120]
[377670638,1754482287124,-500.0,0.00061,120]
[377670639,1754482287134,-500.0,0.00061,120]
[377670640,1754482287145,-500.0,0.00061,120]
[377670641,1754482287154,-500.0,0.00061,120]
[377670642,1754482287164,-500.0,0.00061,120]
[377670643,1754482287174,-500.0,0.00061,120]
[377670644,1754482287183,-500.0,0.00061,120]
[377670645,1754482287193,-500.0,0.00061,120]
[377670646,1754482287203,-500.0,0.00061,120]
[377670647,1754482287212,-500.0,0.00061,120]
[377670648,1754482287222,-500.0,0.00061,120]
[377670649,1754482287231,-500.0,0.00061,120]
[377670650,1754482287241,-500.0,0.00061,120]
[377670651,1754482287250,-500.0,0.00061,120]
[377670652,1754482287259,-500.0,0.00061,120]
[377670653,1754482287269,-500.0,0.00061,120]
[377670654,1754482287278,-500.0,0.00061,120]
[377670655,1754482287287,-500.0,0.00061,120]
[377670656,1754482287297,-500.0,0.00061,120]
[377670657,1754482287306,-500.0,0.00061,120]
[377670658,1754482287316,-500.0,0.00061,120]
[377670659,1754482287326,-500.0,0.00061,120]
[377670660,1754482287335,-500.0,0.00061,120]
[377670661,1754482287344,-500.0,0.00061,120]
[377670662,1754482287353,-500.0,0.00061,120]
[377670663,1754482287363,-500.0,0.00061,120]
[377670664,1754482287372,-500.0,0.00061,120]
[377670665,1754482287382,-500.0,0.00061,120]
[377670666,1754482287391,-500.0,0.00061,120]
[377670667,1754482287400,-500.0,0.00061,120]
[377670668,1754482287409,-500.0,0.00061,120]
[377670669,1754482287419,-500.0,0.00061,120]
[377670670,1754482287428,-500.0,0.00061,120]
[377670671,1754482287438,-500.0,0.00061,120]
[377670672,1754482287447,-500.0,0.00061,120]
[377670673,1754482287456,-500.0,0.00061,120]
[377670674,1754482287466,-500.0,0.00061,120]
[377670675,1754482287475,-500.0,0.00061,120]
[377670676,1754482287485,-500.0,0.00061,120]
[377670677,1754482287494,-500.0,0.00061,120]
[377670678,1754482287503,-500.0,0.00061,120]
[377670679,1754482287516,-500.0,0.00061,120]
[377670680,1754482287526,-500.0,0.00061,120]
[377670681,1754482287536,-500.0,0.00061,120]
[377670682,1754482287546,-500.0,0.00061,120]
[377670683,1754482287555,-500.0,0.00061,120]
[377670684,1754482287565,-500.0,0.00061,120]
[377670685,1754482287574,-500.0,0.00061,120]
[377670686,1754482287583,-500.0,0.00061,120]
[377670687,1754482287592,-500.0,0.00061,120]
[377670688,1754482287602,-500.0,0.00061,120]
[377670689,1754482287611,-500.0,0.00061,120]
[377670690,1754482287621,-500.0,0.00061,120]
[377670691,1754482287631,-500.0,0.00061,120]
[377670692,1754482287643,-500.0,0.00061,120]
[377670693,1754482287653,-500.0,0.00061,120]
[377670694,1754482287662,-500.0,0.00061,120]
[377670695,1754482287671,-500.0,0.00061,120]
[377670696,1754482287682,-500.0,0.00061,120]
[377670697,1754482287691,-500.0,0.00061,120]
[377670698,1754482287701,-500.0,0.00061,120]
[377670699,1754482287710,-500.0,0.00061,120]
[377670700,1754482287721,-500.0,0.00061,120]
[377670701,1754482287731,-500.0,0.00061,120]
[377670702,1754482287740,-500.0,0.00061,120]
[377670703,1754482287749,-151.0,0.00061,120]
[377670704,1754482287851,-151.0,0.00061,120]
[377670705,1754482287861,-151.0,0.00061,30]
[377670706,1754482287871,-151.0,0.00061,120]
[377670707,1754482287881,-151.0,0.000611,120]
[377670708,1754482287891,-408.0,0.00061276,120]
[377670709,1754482287900,-332.86,0.00061359,7]
[377670710,1754482287910,-2200.0,0.00061452,120]
[377670711,1754482287919,-200.0,0.00061593,120]
[377670712,1754482287929,-206.0,0.0006199,120]
[377670713,1754482287939,-207.0,0.0006199,120]
[377670714,1754482287948,-207.0,0.0006199,120]
[377670715,1754482287957,-207.0,0.0006199,120]
[377670716,1754482287966,-206.0,0.0006199,120]
[377670717,1754482287975,-2374.0,0.00062,120]
[377670718,1754482287985,-500.0,0.00062,120]
[377670719,1754482287994,-516.15638506,0.00062,120]
[377670720,1754482288004,-500.0,0.00062,120]
[377670721,1754482288014,-500.0,0.00062,120]
[377670722,1754482288024,-500.0,0.00062,120]
[377670723,1754482288034,-500.0,0.00062,120]
[377670724,1754482288044,-538.0773,0.00062,2]
[377670725,1754482288054,-538.0773,0.00062,2]
[377670726,1754482288064,-895.29442289,0.00062247,90]
[377670727,1754482288074,-151.0,0.000623,120]
[377670728,1754482288084,-200.0,0.00062381,120]
[377670729,1754482288094,-200.0,0.00062432,120]
[377670730,1754482288104,-2200.0,0.00062548,120]
[377670731,1754482288114,-200.0,0.00062745,120]
[377670732,1754482288124,-200.0,0.00062818,120]
[377670733,1754482288135,-500.0,0.00063,120]
[377670734,1754482288145,-500.0,0.00063,120]
[377670735,1754482288155,-593.24961039,0.00063,120]
[377670736,1754482288165,-500.0,0.00063,120]
[377670737,1754482288175,-500.0,0.00063,120]
[377670738,1754482288185,-520.09370782,0.00063,120]
[377670739,1754482288194,-500.0,0.00063,120]
[377670740,1754482288205,-500.0,0.00063,120]
[377670741,1754482288214,-9159.8,0.00063,14]
[377670742,1754482288224,-200.0,0.00063135,120]
[377670743,1754482288234,-500.0,0.000632,120]
[377670744,1754482288243,-151.0,0.000634,120]
[377670745,1754482288255,-500.0,0.000634,120]
[377670746,1754482288266,-2200.0,0.00063644,120]
[377670747,1754482288276,-200.0,0.00063729,120]
[377670748,1754482288286,-157.75501726,0.00064,120]
[377670749,1754482288306,-400.0,0.00064,120]
[377670750,1754482288316,-408.0,0.00064276,120]
[377670751,1754482288327,-200.0,0.00064318,120]
[377670752,1754482288336,-1718.81805496,0.0006444,61]
[377670753,1754482288346,-45291.55193676,0.0006444,30]
[377670754,1754482288752,-49126.76714302,0.0006444,30]
[377670755,1754482288780,-460.0,0.00032058,120]
[377670756,1754482288794,-1753915.76933318,0.0006444,30]
[377670757,1754482289969,-461.26544088,0.00024953,3]
[377670758,1754482289980,-1051.39,0.00025975,7]
[377670759,1754482289990,-602.85,0.0002598,10]
[377670760,1754482290000,-1051.39,0.00027407,7]
[377670761,1754482290009,-461.26544088,0.000287,7]
[377670762,1754482290019,-1051.39,0.00028839,30]
[377670763,1754482290029,-1546.54522146,0.00030388,2]
[377670764,1754482290039,-460.0,0.00032058,120]
[377670765,1754482290049,-460.0,0.00032058,120]
[377670766,1754482290058,-342.01118048,0.00032058,120]
[377670767,1754482290072,-117.98881952,0.00032058,120]
[377670768,1754482290082,-460.0,0.00032058,120]
[377670769,1754482290091,-460.0,0.00032058,120]
[377670770,1754482290101,-460.0,0.00032058,120]
[377670771,1754482290110,-541.87359736,0.00032058,120]
[377670772,1754482290119,-460.0,0.00032058,120]
[377670773,1754482290130,-523.1,0.00032058,120]
[377670774,1754482290139,-460.0,0.00032058,120]
[377670775,1754482290149,-460.0,0.00032058,120]
[377670776,1754482290159,-460.0,0.00032058,120]
[377670777,1754482290168,-460.0,0.00032058,120]
[377670778,1754482290178,-460.0,0.00032058,120]
[377670779,1754482290188,-151.0,0.00032058,7]
[377670780,1754482290197,-151.0,0.00032058,7]
[377670781,1754482290207,-151.0,0.00032058,7]
[377670782,1754482290217,-151.0,0.00032058,7]
[377670783,1754482290226,-275.1243,0.00032058,7]
[377670784,1754482290235,-1657.12,0.000321,7]
[377670785,1754482290245,-250.7058899,0.00032558,2]
[377670786,1754482290255,-461.26544088,0.00033,30]
[377670787,1754482290264,-1657.12,0.000335,7]
[377670788,1754482290274,-250.7058899,0.000336,16]
[377670789,1754482290283,-1657.12,0.000349,7]
[377670790,1754482290294,-1657.12,0.000368,7]
[377670791,1754482290304,-500.0,0.00038184,2]
[377670792,1754482290314,-151.0,0.00038184,2]
[377670793,1754482290323,-151.0,0.00038184,2]
[377670794,1754482290333,-500.0,0.00038458,2]
[377670795,1754482290342,-238.73498064,0.00038458,2]
[377670796,1754482290352,-151.0,0.00038523,30]
[377670797,1754482290362,-250.0,0.00038523,30]
[377670798,1754482290371,-151.0,0.00038523,30]
[377670799,1754482290380,-250.0,0.00038523,30]
[377670800,1754482290389,-151.0,0.00038523,30]
[377670801,1754482290399,-151.0,0.00038523,30]
[377670802,1754482290409,-250.0,0.00038523,30]
[377670803,1754482290419,-151.0,0.00038523,30]
[377670804,1754482290428,-250.0,0.00038523,30]
[377670805,1754482290438,-151.0,0.00038523,30]
[377670806,1754482290449,-250.0,0.00038523,30]
[377670807,1754482290459,-151.0,0.00038523,30]
[377670808,1754482290469,-325.0,0.00038524,14]
[377670809,1754482290479,-325.0,0.00038524,14]
[377670810,1754482290490,-325.0,0.00038524,14]
[377670811,1754482290499,-325.0,0.00038524,14]
[377670812,1754482290509,-325.0,0.00038524,14]
[377670813,1754482290519,-325.0,0.00038524,14]
[377670814,1754482290529,-325.0,0.00038524,14]
[377670815,1754482290540,-325.0,0.00038524,14]
[377670816,1754482290549,-325.0,0.00038524,14]
[377670817,1754482290559,-1657.12,0.000386,7]
[377670818,1754482290568,-542.96487504,0.00038732,2]
[377670819,1754482290578,-158.39226968,0.00042575,30]
[377670820,1754482290588,-158.39226968,0.00042822,30]
[377670821,1754482290598,-158.39226968,0.00043068,30]
[377670822,1754482290607,-461.26544088,0.0005,10]
[377670823,1754482290617,-1657.12,0.00052,14]
[377670824,1754482290626,-57805.73248756,0.0006444,30]
[377670825,1754482291141,-1051.39,0.00030137,30]
[377670826,1754482291151,-1051.39,0.00031703,30]
[377670827,1754482291160,-1000.0,0.00032,8]
[377670828,1754482291170,-460.0,0.00032058,120]
[377670829,1754482291179,-460.0,0.00032058,120]
[377670830,1754482291189,-460.0,0.00032058,120]
[377670831,1754482291198,-460.0,0.00032058,120]
[377670832,1754482291208,-460.0,0.00032058,120]
[377670833,1754482291217,-2200.0,0.00032058,2]
[377670834,1754482291227,-1051.39,0.00033135,30]
[377670835,1754482291236,-1051.39,0.00034567,30]
[377670836,1754482291246,-500.4,0.000358,90]
[377670837,1754482291255,-1051.39,0.00035999,60]
[377670838,1754482291264,-1051.39,0.00037431,60]
[377670839,1754482291273,-500.0,0.00038184,2]
[377670840,1754482291283,-151.0,0.00038184,2]
[377670841,1754482291292,-500.0,0.00038458,2]
[377670842,1754482291301,-151.0,0.00038458,2]
[377670843,1754482291310,-151.0,0.00038523,30]
[377670844,1754482291319,-250.0,0.00038523,30]
[377670845,1754482291328,-250.0,0.00038523,30]
[377670846,1754482291337,-250.0,0.00038523,30]
[377670847,1754482291347,-325.0,0.00038524,14]
[377670848,1754482291356,-325.0,0.00038524,14]
[377670849,1754482291365,-500.0,0.00038732,2]
[377670850,1754482291374,-198.0,0.00038732,2]
[377670851,1754482291383,-157.0,0.00039006,2]
[377670852,1754482291392,-21780.24482888,0.0006444,30]
[377670853,1754482292087,-1080.38725523,0.0006444,30]
[377670854,1754482292099,-1653.01889657,0.0006444,30]
[377670855,1754482292110,-975.40389174,0.0006444,30]
[377670856,1754482305318,210.794847,0.00013699,2]
[377670857,1754482305523,210.794847,0.00020187,2]
[377670859,1754482347975,150.5,0.0002639,120]
[377670860,1754482348437,150.5,0.0002638,120]
[377670861,1754482348874,150.5,0.0002637,120]
[377670862,1754482348968,536.0,0.0002639,120]
[377670863,1754482349539,536.0,0.0002638,120]
[377670864,1754482349955,536.0,0.0002637,120]
[377670865,1754482350107,160.0,0.0002,3]
[377670866,1754482350536,160.0,0.0002,7]
[377670867,1754482384143,2051.0,0.00024,2]
[377670868,1754482385632,995.33811971,0.00030137,120]
[377670869,1754482537867,204.7288449,0.00023972,2]
[377670870,1754482571324,150.0,0.00024313,2]
[377670871,1754482652245,1998.43872479,0.00024163,2]
[377670872,1754482652266,6738.53382611,0.00024163,2]
[377670873,1754482709381,241.5,0.0002638,120]
[377670874,1754482852752,304.1429854,0.0002769,120]
[377670875,1754482855945,150.0,0.00024419,2]
[377670877,1754482978621,3111.46617389,0.00023971,2]
[377670878,1754482978642,6888.53382611,0.00023971,2]
[377670879,1754483036768,202.91406581,0.0002453,2]
[377670880,1754483069530,375.0,0.0002597,120]
[377670881,1754483070090,375.0,0.0002596,120]
[377670882,1754483070544,375.0,0.0002595,120]
[377670883,1754483086150,2908.55210808,0.00023956,2]
[377670884,1754483086173,10000.0,0.00023956,2]
[377670885,1754483086196,10000.0,0.00023956,2]
[377670886,1754483086219,1991.44789192,0.00023956,2]
[377670887,1754483091338,215.9353816,0.0002453,2]
[377670888,1754483186415,209.569693,0.00013699,2]
[377670889,1754483186631,209.569693,0.00020187,2]
[377670892,1754483261493,7373.47734048,0.000229,7]
[377670893,1754483261518,1078.95664256,0.000229,7]
[377670894,1754483262103,187.30932865,0.00030137,120]
[377670899,1754483318603,6401.74187324,0.00019,20]
[377670900,1754483324755,350.575782,0.0002,120]
[377670901,1754483329482,8921.04335744,0.0002249,7]
[377670902,1754483329506,10000.0,0.0002249,7]
[377670903,1754483329532,10000.0,0.0002249,7]
[377670904,1754483329555,2420.89457688,0.0002249,7]
[377670905,1754483330048,1023.74008946,0.00024,7]
[377670906,1754483346423,205.027795,0.00023963,2]
[377670907,1754483355193,-182.00716014,0.0002463,2]
[377670908,1754483355223,-2116.22122966,0.00024768,2]
[377670909,1754483361095,-72.12922487,0.00024768,2]
[377670910,1754483361116,-111.24201663,0.0002485,2]
[377670911,1754483370265,3977.3406367,0.00023967,2]
[377670912,1754483373103,-54.54545748,0.0002485,2]
[377670913,1754483373125,-1505.27306536,0.0002487,2]
[377670914,1754483373146,-150.0,0.0002495,2]
[377670915,1754483373170,-300.0,0.00024966,2]
[377670916,1754483373192,-1200.0,0.00024967,2]
[377670917,1754483373213,-179.9368617,0.00024967,2]
[377670921,1754483431999,-581.09999978,0.00024773,2]
[377670922,1754483432011,-2112.32111961,0.00024773,2]
[377670923,1754483432020,-145.45760079,0.00024967,2]
[377670924,1754483432029,-481.37757587,0.00024967,2]
[377670925,1754483432056,-83.64253219,0.00024967,2]
[377670926,1754483432066,-500.0,0.00024967,2]
[377670927,1754483432076,-500.0,0.00024967,2]
[377670929,1754483432086,-239.75571318,0.00024967,2]
[377670931,1754483432095,-160.0,0.0002497,2]
[377670933,1754483432104,-160.0,0.0002497,2]
[377670934,1754483432113,-312.66074973,0.00024971,2]
[377670936,1754483432122,-500.0,0.00024971,2]
[377670937,1754483432131,-500.0,0.00024973,2]
[377670938,1754483432141,-500.0,0.00024973,2]
[377670939,1754483432151,-520.08929227,0.00024973,2]
[377670940,1754483432162,-500.0,0.00024973,2]
[377670941,1754483432171,-609.72076519,0.00024973,2]
[377670943,1754483432180,-500.0,0.00024973,2]
[377670945,1754483432191,-500.0,0.00024973,2]
[377670947,1754483432205,-500.0,0.00024973,2]
[377670949,1754483432215,-500.0,0.00024973,2]
[377670951,1754483432224,-500.0,0.00024973,2]
[377670953,1754483432234,-500.0,0.00024973,2]
[377670955,1754483432243,-500.0,0.00024973,2]
[377670956,1754483432252,-500.0,0.00024973,2]
[377670957,1754483432261,-500.0,0.00024973,2]
[377670958,1754483432271,-500.0,0.00024973,2]
[377670959,1754483432280,-472.01702096,0.00024973,2]
[377670960,1754483432292,-27.98297904,0.00024973,2]
[377670961,1754483432302,-500.0,0.00024973,2]
[377670962,1754483432311,-500.951352,0.00024973,2]
[377670963,1754483432321,-142.81600898,0.00024973,2]
[377671011,1754483437896,-568.86252481,0.00024972,2]
[377671012,1754483437906,-484.97359215,0.00024973,2]
[377671013,1754483437917,-500.0,0.00024973,2]
[377671014,1754483437926,-500.0,0.00024973,2]
[377671015,1754483437936,-500.0,0.00024973,2]
[377671016,1754483437945,-291.74069253,0.00024973,2]
[377671017,1754483437955,-161.52608954,0.00024973,2]
[377671018,1754483437965,-383.53831578,0.00024973,2]
[377671019,1754483437974,-500.0,0.00024973,2]
[377671020,1754483437984,-500.0,0.00024973,2]
[377671021,1754483437993,-500.0,0.00024973,2]
[377671022,1754483438002,-500.0,0.00024973,2]
[377671023,1754483438012,-536.94357017,0.00024973,2]
[377671024,1754483438021,-500.0,0.00024973,2]
[377671025,1754483438030,-500.0,0.00024973,2]
[377671026,1754483438039,-500.0,0.00024973,2]
[377671027,1754483438048,-503.52611359,0.00024973,2]
[377671028,1754483438057,-500.0,0.00024973,2]
[377671029,1754483438067,-500.0,0.00024973,2]
[377671030,1754483438075,-50000.0,0.00024973,2]
[377671031,1754483438085,-500.0,0.00024973,2]
[377671032,1754483438094,-500.0,0.00024973,2]
[377671033,1754483438103,-500.0,0.00024973,2]
[377671034,1754483438112,-502.38,0.0002499,10]
[377671035,1754483438121,-418.65,0.0002499,10]
[377671036,1754483438130,-141876.71907607,0.00025,2]
[377671037,1754483438140,-500.0,0.00025247,2]
[377671038,1754483438149,-226.65426691,0.0002541,2]
[377671039,1754483438159,-8128.57019951,0.00025453,2]
[377671040,1754483438169,-900.0,0.00025469,3]
[377671041,1754483438179,-98094.0805443,0.00025511,2]
[377671042,1754483438191,-469.61154157,0.00025511,2]
[377671043,1754483438201,-235.12158982,0.00025521,2]
[377671044,1754483438211,-1000.0,0.00025521,2]
[377671045,1754483438220,-1000.0,0.00025521,2]
[377671046,1754483438230,-500.41045234,0.00025521,2]
[377671047,1754483438239,-1000.0,0.00025521,2]
[377671048,1754483438248,-1000.0,0.00025521,2]
[377671049,1754483438257,-1000.0,0.00025521,2]
[377671050,1754483438266,-1000.0,0.00025521,2]
[377671051,1754483438275,-1000.0,0.00025521,2]
[377671052,1754483438284,-771.91351321,0.00025521,2]
[377671053,1754483438294,-1000.0,0.00025521,2]
[377671054,1754483438303,-1000.0,0.00025521,2]
[377671055,1754483438312,-1018.50964541,0.00025521,2]
[377671056,1754483438321,-1113.83627963,0.00025521,2]
[377671057,1754483438330,-1000.0,0.00025521,2]
[377671058,1754483438340,-1000.0,0.00025521,2]
[377671059,1754483438349,-1000.0,0.00025521,2]
[377671060,1754483438358,-1000.0,0.00025521,2]
[377671061,1754483438368,-508.43800715,0.00025521,2]
[377671062,1754483438382,-1000.0,0.00025521,2]
[377671063,1754483438392,-1000.0,0.00025521,2]
[377671064,1754483438401,-1000.0,0.00025521,2]
[377671065,1754483438410,-1000.0,0.00025521,2]
[377671066,1754483438422,-1007.22421426,0.00025521,2]
[377671068,1754483438432,-1000.0,0.00025521,2]
[377671070,1754483438441,-1000.0,0.00025521,2]
[377671071,1754483438450,-1000.0,0.00025521,2]
[377671072,1754483438459,-500.0,0.00025521,2]
[377671073,1754483438469,-196188.161089,0.00025552,2]
[377671074,1754483438479,-939.22308314,0.00025552,2]
[377671075,1754483438488,-5169.6,0.00025553,3]
[377671076,1754483438497,-2584.8,0.00025553,3]
[377671077,1754483438509,-1292.4,0.00025553,3]
[377671078,1754483438519,-646.2,0.00025553,3]